{"text_format":"3","workbook":"xlsx","n_sheets":1,"sheets":["PRICING SCHEDULE"],"not_rendered":{"images":1,"defined_names":2},"read":"whole","date_system":"1900"}

{"sheet":"PRICING SCHEDULE","index":0,"n_rows":24,"n_cols":16,"rows_kept":24,"merged":[[10,3,10,6],[10,7,10,10],[10,11,10,14],[20,1,23,1],[20,3,20,4],[22,3,22,4],[23,3,23,4]]}
[null,"SUPPLY CHAIN MANAGEMENT"]
[null,"Pricing schedule"]
["RFB No","RFB 3246-2026"]
["RFB Title","REQUEST FOR BID FOR THE APPOINTMENT OF A SERVICE PROVIDER FOR THE PHYSICAL SECURITY GUARDING CONTRACT FOR NELSPRUIT SITA OFFICE FOR A PERIOD OF THREE YEARS"]
["Bidder Name "]
[]
["1. INSTRUCTION FOR COMPLETING THE PRICING SCHEDULE"]
["(a)  Bidder must complete/enter YELLOW cells only "]
["(b)  Unit and Line prices must be VAT EXCLUSIVE and in South African Rand (ZAR) currency."]
["(c) The price must include all cost to deliver the goods or render the service, including all applicable taxes, labour, overtime and subsistance and travel"]
[{"$nulls":3},"YEAR 1 ",{"$nulls":3},"YEAR 2 ",{"$nulls":3},"YEAR 3 ",{"$nulls":3},"TOTAL"]
["Item No","Goods/Service description","Unit of measure","Qty ","Unit Price \n(Excl VAT)","Monthly Price (Exl.VAT)","Line/Annual Price Y1","Qty","Unit Price \n(Excl VAT)","Monthly Price (Exl.VAT)","Line/Annual Price Y2","Qty","Unit Price \n(Excl VAT)","Monthly Price (Exl.VAT)","Line/Annual Price Y3","Line Price Term \n(Excl VAT)"]
[1,"SITA Nelspruit Offices",{"$nulls":4},{"$f":"SUBTOTAL(9,G14:G15)","v":0},{"$nulls":3},{"$f":"SUBTOTAL(9,K14:K15)","v":0},{"$nulls":3},{"$f":"SUBTOTAL(9,O14:O15)","v":0},{"$f":"SUBTOTAL(9,P14:P15)","v":0}]
["1.1","Grade \"C\" Security Officers \nDay shift - Monday to Friday, Weekends, Public Holidays and Annual Closure, 24/7","No. of Persons",3,0,{"$f":"E14*D14","v":0},{"$f":"F14*12","v":0},3,0,{"$f":"I14*H14","v":0},{"$f":"J14*12","v":0},3,0,{"$f":"M14*L14","v":0},{"$f":"N14*12","v":0},{"$f":"SUM(G14,K14,O14)","v":0}]
["1.2","Grade \"C\" Security Officers \nNight shift -  Monday to Friday, Weekends and Public Holidays and Annual Closure, 24/7","No. of Persons",2,0,{"$f":"E15*D15","v":0},{"$f":"F15*12","v":0},2,0,{"$f":"I15*H15","v":0},{"$f":"J15*12","v":0},2,0,{"$f":"M15*L15","v":0},{"$f":"N15*12","v":0},{"$f":"SUM(G15,K15,O15)","v":0}]
[null,"TOTAL BID PRICE  (EXCL VAT)",{"$nulls":4},{"$f":"SUBTOTAL(9,G13:G15)","v":0},{"$nulls":3},{"$f":"SUBTOTAL(9,K13:K15)","v":0},{"$nulls":3},{"$f":"SUBTOTAL(9,O13:O15)","v":0},{"$f":"SUM(G16+K16+O16)","v":0}]
[null,"VAT (@15%)",{"$nulls":4},{"$f":"G16*0.15","v":0},{"$nulls":3},{"$f":"K16*0.15","v":0},{"$nulls":3},{"$f":"O16*0.15","v":0},{"$f":"P16*0.15","v":0}]
[null,"TOTAL  BID PRICE (INCL VAT)",{"$nulls":4},{"$f":"G16+G17","v":0},{"$nulls":3},{"$f":"K16+K17","v":0},{"$nulls":3},{"$f":"O16+O17","v":0},{"$f":"P16+P17","v":0}]
[]
[]
[null,"I, the bidder, confirm that the price(s) and rate(s) quoted cover all the goods and/or works specified in the bidding documents; that the price(s) or rate(s) cover all my obligations and I accept that any mistakes regarding price(s), rate(s) or calculations will be at my own risk.\n[Note: First convert to PDF, then add signature]"]
[null,null,"Name","Capacity"]
[]
[null,null,"Signature (above)","Date"]